bitfinex-derivatives/quotes_SOLF0:USTF0_20220108
["timestamp","ask_amount","ask_price","bid_price","bid_amount"]
[1641641643124,7.2171773,145.48,145.41,1.99490906]
[1641641643624,7.2171773,145.48,145.4,27.66479]
[1641641643823,38.14479,145.49,145.4,27.66479]
[1641641644225,4.0,145.46,145.4,27.66479]
[1641641644424,4.0,145.46,145.41,2.15358795]
[1641641644827,5.50070127,145.44,145.41,2.15358795]
[1641641645026,12.59970127,145.44,145.41,2.15358795]
[1641641645628,7.099,145.44,145.41,2.15358795]
[1641641646027,6.59937261,145.47,145.41,2.15358795]
[1641641648630,6.59937261,145.47,145.39,2.15358795]
[1641641649831,27.66479,145.46,145.39,2.15358795]
[1641641651031,6.59937261,145.47,145.39,2.15358795]
[1641641651431,6.59937261,145.47,145.39,54.37944387]
[1641641652034,39.86279,145.49,145.39,82.04423387]
[1641641652233,38.14479,145.49,145.39,83.76223387]
[1641641652432,38.14479,145.49,145.43,14.58043207]
[1641641653633,38.14479,145.49,145.46,14.58043207]
[1641641654536,10.08,145.5,145.46,14.58043207]
[1641641654735,10.08,145.5,145.44,6.87237991]
[1641641654736,12.158,145.55,145.47,14.58043207]
[1641641654935,10.44,145.55,145.48,6.87072727]
[1641641655136,10.44,145.55,145.47,28.51263144]
[1641641655736,10.44,145.55,145.47,13.93219937]
[1641641655938,10.44,145.55,145.51,38.43936427]
[1641641656136,10.925,145.54,145.51,38.43936427]
[1641641656337,1.717,145.53,145.51,38.43936427]
[1641641657037,1.717,145.53,145.5,38.43936427]
[1641641657243,6.925,145.54,145.5,38.43936427]
[1641641658041,34.58979,145.54,145.51,38.43936427]
[1641641659742,6.925,145.54,145.51,38.43936427]
[1641641660044,1.717,145.53,145.52,38.43936427]
[1641641660242,1.717,145.53,145.52,31.13563048]
[1641641660643,1.717,145.53,145.47,52.14078771]
[1641641660843,14.13987728,145.54,145.52,2.15358795]
[1641641661045,8.643,145.54,145.52,2.15358795]
[1641641661643,8.643,145.54,145.46,33.24398343]
[1641641661644,8.643,145.54,145.49,52.14078771]
[1641641661844,6.925,145.54,145.49,52.14078771]
[1641641662045,27.66479,145.52,145.49,52.14078771]
[1641641662849,27.66479,145.52,145.47,52.14078771]
[1641641663250,6.925,145.54,145.47,52.14078771]
[1641641663449,6.925,145.54,145.49,52.14078771]
[1641641664052,6.925,145.54,145.52,52.14078771]
[1641641664450,5.717,145.53,145.49,2.15358795]
[1641641664951,3.34523994,145.49,145.47,96.29653188]
[1641641665151,1.718,145.48,145.45,96.29653188]
[1641641665352,1.718,145.5,145.45,96.29653188]
[1641641666054,1.718,145.5,145.43,6.87285223]
[1641641666256,27.66479,145.48,145.43,6.87285223]
[1641641666454,1.718,145.47,145.38,283.99601022]
[1641641666655,1.718,145.47,145.39,72.86567852]
[1641641666954,29.38379,145.48,145.39,72.86567852]
[1641641669055,27.66479,145.48,145.39,72.86567852]
[1641641669855,27.66479,145.48,145.41,96.29653188]
[1641641670956,31.66479,145.48,145.41,96.29653188]
[1641641671155,9.49943273,145.47,145.41,96.29653188]
[1641641671357,7.21743273,145.47,145.41,96.29653188]
[1641641671557,4.0,145.46,145.41,96.29653188]
[1641641671757,1.718,145.45,145.41,96.29653188]
[1641641671959,5.774,145.45,145.41,96.29653188]
[1641641672358,5.774,145.45,145.4,96.29653188]
[1641641672561,4.06053531,145.45,145.4,96.29653188]
[1641641672759,5.77953531,145.45,145.4,96.29653188]
[1641641673061,9.77953531,145.45,145.41,96.29653188]
[1641641673259,8.06053531,145.45,145.41,96.29653188]
[1641641673458,4.06053531,145.45,145.41,96.29653188]
[1641641673658,5.5007925,145.44,145.4,96.29653188]
[1641641673859,4.06053531,145.45,145.4,96.29653188]
[1641641674460,4.06053531,145.45,145.39,72.86567852]
[1641641675362,4.06053531,145.45,145.43,58.27779208]
[1641641676265,4.06053531,145.45,145.42,58.27779208]
[1641641676467,0.55939001,145.45,145.42,58.27779208]
[1641641677266,33.16388792,145.48,145.42,58.27779208]
[1641641677467,5.50056081,145.44,145.42,58.27779208]
[1641641677667,7.21956081,145.44,145.42,58.27779208]
[1641641677869,15.00147364,145.44,145.42,58.27779208]
[1641641678068,1.719,145.43,145.42,58.27779208]
[1641641678469,1.719,145.43,145.39,58.27779208]
[1641641678470,57.04858,145.43,145.39,58.27779208]
[1641641678670,5.5016427,145.42,145.39,58.27779208]
[1641641679069,27.66479,145.43,145.39,58.27779208]
[1641641679571,27.66479,145.43,145.38,58.27779208]
[1641641679769,38.513044,145.43,145.38,58.27779208]
[1641641680371,38.513044,145.43,145.37,58.27779208]
[1641641681374,38.513044,145.43,145.42,38.81158468]
[1641641681574,7.066,145.43,145.42,23.12992265]
[1641641681776,31.66479,145.46,145.42,23.12992265]
[1641641681777,33.38379,145.46,145.42,23.12992265]
[1641641682074,4.0,145.45,145.42,23.12992265]
[1641641682277,1.718,145.44,145.42,23.12992265]
[1641641682474,55.32958,145.46,145.42,23.12992265]
[1641641682676,27.66479,145.46,145.42,23.12992265]
[1641641683077,27.66479,145.46,145.4,8.82]
[1641641683277,27.66479,145.46,145.37,71.28282754]
[1641641683676,4.0,145.44,145.37,71.28282754]
[1641641683876,1.719,145.43,145.37,71.28282754]
[1641641684481,1.719,145.43,145.37,13.00503546]
[1641641685377,5.371,145.44,145.37,13.00503546]
[1641641688582,5.50022154,145.45,145.37,13.00503546]
[1641641689684,9.50098234,145.43,145.37,13.00503546]
[1641641689882,12.52398234,145.43,145.37,13.00503546]
[1641641690083,5.50210253,145.4,145.37,13.00503546]
[1641641690382,5.50134469,145.42,145.37,13.00503546]
[1641641690583,8.714,145.4,145.37,13.00503546]
[1641641690983,5.50248017,145.39,145.37,13.00503546]
[1641641691584,8.714,145.4,145.36,27.66479]
[1641641691786,1.719,145.42,145.36,27.66479]
[1641641691987,6.60142562,145.43,145.38,4.0]
[1641641692188,6.60142562,145.43,145.38,9.719]
[1641641692590,16.96001755,145.46,145.38,9.719]
[1641641692991,10.36,145.46,145.38,9.719]
[1641641693192,10.36,145.46,145.38,5.719]
[1641641693393,5.50057226,145.44,145.37,67.2317]
[1641641693794,5.50057226,145.44,145.38,71.28282754]
[1641641694392,27.66479,145.43,145.38,71.28282754]
[1641641694592,27.66479,145.43,145.38,13.00503546]
[1641641697198,27.66479,145.43,145.38,71.28282754]
[1641641697601,5.50057226,145.44,145.38,71.28282754]
[1641641697799,10.36,145.46,145.38,13.00503546]
[1641641698500,10.36,145.46,145.39,27.66479]
[1641641698703,10.36,145.46,145.39,85.94258208]
[1641641699000,10.36,145.46,145.39,92.81732428]
[1641641699801,10.36,145.46,145.39,85.94258208]
[1641641702306,10.36,145.46,145.43,38.91435499]
[1641641702909,8.31812552,145.48,145.43,38.91435499]
[1641641703109,27.66479,145.49,145.43,38.91435499]
[1641641704109,27.66479,145.49,145.45,38.91435499]
[1641641704912,5.49982765,145.46,145.45,38.91435499]
[1641641705111,5.49982765,145.46,145.43,14.84103599]
[1641641705312,1.718,145.45,145.43,14.84103599]
[1641641705512,5.49982765,145.46,145.43,14.84103599]
[1641641706013,5.49982765,145.46,145.44,1.83600053]
[1641641706415,5.50014441,145.46,145.44,1.83600053]
[1641641706615,33.16493441,145.46,145.45,1.83600053]
[1641641708716,27.66479,145.46,145.45,1.83600053]
[1641641709215,1.718,145.48,145.45,1.83600053]
[1641641709416,29.38279,145.49,145.45,1.83600053]
[1641641709818,29.38279,145.49,145.46,1.83600053]
[1641641710019,33.38279,145.49,145.46,1.83600053]
[1641641710822,33.38279,145.49,145.47,1.83600053]
[1641641711018,29.38279,145.49,145.47,1.83600053]
[1641641711620,29.38279,145.49,145.43,1.83600053]
[1641641711820,27.66479,145.49,145.43,1.83600053]
[1641641712020,5.5000866,145.46,145.43,1.83600053]
[1641641712420,34.2632549,145.49,145.43,1.83600053]
[1641641712621,34.2632549,145.49,145.43,73.11882807]
[1641641713021,27.66479,145.49,145.43,73.11882807]
[1641641713524,27.66479,145.49,145.43,58.27779208]
[1641641714423,27.66479,145.49,145.44,4.0]
[1641641714624,5.49854002,145.5,145.44,62.27779208]
[1641641714823,5.49854002,145.5,145.44,58.27779208]
[1641641715023,5.49854002,145.5,145.44,62.27779208]
[1641641715524,38.10479,145.51,145.45,4.0]
[1641641716526,38.10479,145.51,145.46,1.83600053]
[1641641718029,4.0,145.5,145.46,1.83600053]
[1641641718231,49.32069604,145.51,145.46,1.83600053]
[1641641718429,5.4990306,145.49,145.46,1.83600053]
[1641641718830,27.66479,145.48,145.46,1.83600053]
[1641641719231,3.66380906,145.46,145.41,58.27779208]
[1641641719430,1.718,145.47,145.41,58.27779208]
[1641641719937,1.718,145.47,145.41,50.27779208]
[1641641720332,1.718,145.47,145.41,13.00503546]
[1641641720732,4.0,145.46,145.41,13.00503546]
[1641641721133,5.718,145.47,145.41,13.00503546]
[1641641721332,5.718,145.47,145.42,38.92725407]
[1641641722132,4.0,145.43,145.42,38.92725407]
[1641641722331,6.445,145.43,145.41,38.92725407]
[1641641722532,12.164,145.43,145.41,38.92725407]
[1641641722732,27.66479,145.42,145.41,38.92725407]
[1641641723333,27.66479,145.42,145.4,38.92725407]
[1641641724032,4.0,145.41,145.37,13.00503546]
[1641641724333,5.719,145.4,145.37,3.00503546]
[1641641724534,13.911,145.4,145.37,3.00503546]
[1641641724733,27.66479,145.38,145.37,3.00503546]
[1641641724933,29.38379,145.38,145.37,3.00503546]
[1641641725134,29.38379,145.38,145.3,96.29653188]
[1641641725332,27.66479,145.38,145.3,96.29653188]
[1641641725534,4.0,145.35,145.3,96.29653188]
[1641641725735,8.615,145.35,145.28,80.16891459]
[1641641725934,4.0,145.3,145.23,85.96132188]
[1641641726136,1.72,145.29,145.23,55.92132188]
[1641641726635,8.408,145.3,145.23,55.92132188]
[1641641726836,27.66479,145.26,145.23,55.92132188]
[1641641727034,27.66479,145.26,145.2,4.0]
[1641641727435,27.66479,145.26,145.18,8.60497067]
[1641641727735,27.66479,145.26,145.18,6.88397067]
[1641641728935,27.66479,145.26,145.18,10.88397067]
[1641641729235,27.66479,145.26,145.21,6.8825493]
[1641641730036,27.66479,145.26,145.23,4.0]
[1641641731740,10.54,145.31,145.21,6.8825493]
[1641641731940,6.88065504,145.42,145.3,4.0]
[1641641732141,1.721,145.38,145.33,4.0]
[1641641732341,1.719,145.41,145.33,4.0]
[1641641732944,27.66479,145.4,145.33,4.0]
[1641641733145,1.719,145.39,145.33,4.0]
[1641641738549,1.719,145.39,145.35,4.0]
[1641641738749,1.719,145.39,145.38,4.0]
[1641641738948,10.06,145.43,145.38,7.791]
[1641641739548,11.779,145.43,145.38,7.791]
[1641641740150,11.779,145.43,145.35,93.84219]
[1641641740351,11.779,145.43,145.35,66.1774]
[1641641740750,10.06,145.43,145.35,66.1774]
[1641641742150,1.719,145.45,145.39,4.0]
[1641641742550,12.259,145.45,145.39,4.0]
[1641641743252,10.54,145.45,145.39,4.0]
[1641641744154,10.54,145.45,145.38,4.0]
[1641641744355,17.052,145.45,145.38,4.0]
[1641641744557,6.512,145.45,145.38,4.0]
[1641641745556,38.06479,145.46,145.38,4.0]
[1641641747059,38.06479,145.46,145.39,4.0]
[1641641747259,38.06479,145.46,145.38,4.0]
[1641641747459,38.06479,145.46,145.37,31.66479]
[1641641747863,38.06479,145.46,145.38,4.0]
[1641641748462,38.06479,145.46,145.39,4.0]
[1641641749360,38.06479,145.46,145.38,4.0]
[1641641750461,38.06479,145.46,145.39,4.0]
[1641641750661,15.71917673,145.48,145.41,4.0]
[1641641750859,10.22,145.48,145.42,27.66479]
[1641641751159,10.22,145.48,145.42,31.66479]
[1641641751360,10.22,145.48,145.42,27.66479]
[1641641752359,10.22,145.48,145.42,42.194599]
[1641641752761,10.22,145.48,145.42,46.194599]
[1641641753459,10.22,145.48,145.43,4.0]
[1641641754061,27.66479,145.51,145.43,4.0]
[1641641754262,27.66479,145.51,145.43,6.29]
[1641641754462,27.66479,145.51,145.46,4.0]
[1641641755064,27.66479,145.51,145.47,6.87025523]
[1641641755264,10.48,145.53,145.45,38.53622544]
[1641641755464,1.718,145.54,145.45,41.74322544]
[1641641755665,10.44,145.55,145.5,4.0]
[1641641755865,11.39440505,145.59,145.5,6.86883951]
[1641641756164,21.71440505,145.59,145.51,4.0]
[1641641756365,10.32,145.59,145.52,4.0]
[1641641756565,10.32,145.59,145.51,4.0]
[1641641757168,15.877,145.59,145.51,4.0]
[1641641757568,15.877,145.59,145.5,34.53362951]
[1641641757770,25.37204019,145.59,145.5,34.53362951]
[1641641758067,21.37204019,145.59,145.5,34.53362951]
[1641641758570,15.877,145.59,145.54,4.0]
[1641641758768,5.557,145.59,145.54,4.0]
[1641641758969,5.557,145.59,145.53,4.0]
[1641641759468,5.557,145.59,145.52,4.0]
[1641641759670,5.557,145.59,145.51,72.7057]
[1641641759869,5.557,145.59,145.51,68.7057]
[1641641760070,5.557,145.59,145.51,72.7057]
[1641641760271,5.557,145.59,145.51,68.7057]
[1641641760470,5.557,145.59,145.51,72.7057]
[1641641761472,5.557,145.59,145.51,68.7057]
[1641641761671,27.66479,145.61,145.51,68.7057]
[1641641761672,27.66479,145.61,145.53,4.0]
[1641641762472,27.66479,145.61,145.54,4.0]
[1641641762874,27.66479,145.61,145.54,1.51137109]
[1641641763175,27.66479,145.61,145.54,29.17616109]
[1641641763374,27.66479,145.61,145.54,33.17616109]
[1641641763673,27.66479,145.61,145.55,1.51137109]
[1641641764474,27.66479,145.61,145.54,27.66479]
[1641641765175,27.66479,145.61,145.54,31.66479]
[1641641765375,27.66479,145.61,145.54,27.66479]
[1641641765875,27.66479,145.61,145.54,38.53174279]
[1641641766473,27.66479,145.61,145.55,1.75522075]
[1641641766874,27.66479,145.61,145.55,5.75522075]
[1641641767275,27.66479,145.61,145.56,4.0]
[1641641767675,27.66479,145.61,145.58,4.0]
[1641641768376,5.524,145.62,145.58,4.0]
[1641641768576,10.4,145.63,145.61,4.0]
[1641641768776,65.6426,145.71,145.62,4.0]
[1641641769176,65.6426,145.71,145.6,12.46936024]
[1641641769177,27.66479,145.7,145.61,31.66479]
[1641641769377,27.66479,145.7,145.61,27.66479]
[1641641769578,27.66479,145.7,145.61,31.66479]
[1641641769778,27.66479,145.7,145.63,4.0]
[1641641769980,27.66479,145.7,145.63,6.12243573]
[1641641770379,27.66479,145.7,145.63,2.12243573]
[1641641770781,27.66479,145.7,145.63,4.0]
[1641641774087,27.66479,145.7,145.64,4.0]
[1641641774488,27.66479,145.7,145.63,4.0]
[1641641774690,27.66479,145.7,145.62,66.8147]
[1641641774888,33.52479,145.7,145.62,66.8147]
[1641641775088,39.01584389,145.7,145.62,66.8147]
[1641641777794,1.716,145.69,145.62,66.8147]
[1641641778295,4.0,145.67,145.61,6.66479]
[1641641778593,4.0,145.62,145.53,38.64709305]
[1641641778793,5.49468597,145.6,145.54,28.64709305]
[1641641779595,27.66479,145.56,145.54,28.64709305]
[1641641779794,35.52079,145.56,145.54,28.64709305]
[1641641779996,35.52079,145.56,145.51,2.23783961]
[1641641780997,35.52079,145.56,145.48,6.23783961]
[1641641782096,35.52079,145.56,145.49,2.23783961]
[1641641783699,27.66479,145.52,145.49,2.23783961]
[1641641783902,33.20379,145.52,145.49,2.23783961]
[1641641784799,33.20379,145.52,145.47,2.23783961]
[1641641787202,27.66479,145.52,145.47,2.23783961]
[1641641788405,33.27779,145.52,145.47,2.23783961]
[1641641789805,27.66479,145.52,145.47,2.23783961]
[1641641795310,27.66479,145.52,145.48,4.0]
[1641641795810,27.66479,145.52,145.49,4.0]
[1641641796315,10.22,145.52,145.49,2.23783961]
[1641641796511,10.22,145.52,145.5,2.23783961]
[1641641797515,10.22,145.52,145.5,4.0]
[1641641798113,10.22,145.52,145.51,2.23783961]
[1641641799014,10.22,145.52,145.51,40.92822327]
[1641641799814,37.88479,145.52,145.51,40.92822327]
[1641641800416,37.88479,145.52,145.51,2.327e-05]
[1641641800615,47.38233335,145.52,145.5,38.71820061]
[1641641800813,5.498641,145.5,145.47,2.64862459]
[1641641801617,5.498641,145.5,145.45,14.48367079]
[1641641801919,27.66479,145.48,145.39,46.14846079]
[1641641802118,33.24979,145.48,145.39,46.14846079]
[1641641802517,33.24979,145.48,145.39,42.14846079]
[1641641802717,33.24979,145.48,145.39,46.14846079]
[1641641803619,33.24979,145.48,145.39,65.55322288]
[1641641804021,33.24979,145.48,145.4,4.0]
[1641641804619,33.24979,145.48,145.39,61.55322288]
[1641641804819,33.24979,145.48,145.4,1.718]
[1641641806120,33.24979,145.48,145.39,67.27122288]
[1641641806322,33.24979,145.48,145.4,4.0]
[1641641807423,33.24979,145.48,145.41,1.718]
[1641641808525,33.24979,145.48,145.4,5.718]
[1641641808725,39.60279,145.52,145.46,4.0]
[1641641808926,37.88479,145.52,145.46,11.958]
[1641641809129,37.88479,145.52,145.46,7.958]
[1641641809325,10.22,145.52,145.46,7.958]
[1641641809526,10.22,145.52,145.49,14.56730954]
[1641641810428,10.22,145.52,145.5,14.56730954]
[1641641811632,10.22,145.52,145.49,14.56730954]
[1641641812530,10.22,145.52,145.5,14.56730954]
[1641641813731,11.938,145.52,145.5,14.56730954]
[1641641814031,11.938,145.52,145.49,14.56730954]
[1641641815231,10.22,145.52,145.49,14.56730954]
[1641641815431,10.22,145.52,145.48,14.56730954]
[1641641816431,4.0,145.5,145.48,11.56730954]
[1641641816631,1.718,145.49,145.48,11.56730954]
[1641641817635,1.718,145.49,145.45,14.48367079]
[1641641817834,6.982,145.5,145.4,79.66727079]
[1641641817835,8.7,145.5,145.4,79.66727079]
[1641641818035,27.66479,145.48,145.4,83.66727079]
[1641641818235,27.66479,145.48,145.4,79.66727079]
[1641641818936,27.66479,145.48,145.41,14.48367079]
[1641641821241,27.66479,145.48,145.42,38.88369104]
[1641641822042,27.66479,145.48,145.4,100.46729104]
[1641641822743,27.66479,145.48,145.42,38.88369104]
[1641641824147,27.66479,145.48,145.42,42.88369104]
[1641641824546,78.9131,145.52,145.42,42.88369104]
[1641641824746,10.22,145.52,145.42,44.60169104]
[1641641825648,10.22,145.52,145.45,38.88369104]
[1641641828248,1.718,145.51,145.45,38.88369104]
[1641641829548,10.22,145.52,145.43,27.66479]
[1641641829549,11.938,145.52,145.46,38.88369104]
[1641641830850,10.22,145.52,145.46,38.88369104]
[1641641831051,4.0,145.51,145.46,38.88369104]
[1641641831256,5.718,145.5,145.46,38.88369104]
[1641641831655,1.718,145.5,145.46,38.88369104]
[1641641832058,27.66479,145.49,145.45,38.88369104]
[1641641832255,27.66479,145.49,145.45,51.96312411]
[1641641832256,35.95179,145.49,145.45,51.96312411]
[1641641832958,35.95179,145.49,145.44,101.02609104]
[1641641834158,27.66479,145.46,145.44,101.02609104]
[1641641834758,27.66479,145.46,145.45,52.70419043]
[1641641836560,27.66479,145.46,145.45,38.88369104]
[1641641837560,27.66479,145.46,145.41,58.2981512]
[1641641838362,27.66479,145.46,145.45,38.92156119]
[1641641840871,27.66479,145.46,145.44,38.92156119]
[1641641841470,34.07579,145.46,145.44,38.92156119]
[1641641841669,34.07579,145.46,145.43,38.92156119]
[1641641843070,34.07579,145.46,145.4,15.99513409]
[1641641843071,34.07579,145.46,145.44,38.92156119]
[1641641843775,34.07579,145.46,145.43,38.92156119]
[1641641844674,34.07579,145.46,145.4,15.99513409]
[1641641844675,34.07579,145.46,145.44,38.92156119]
[1641641844877,27.66479,145.46,145.44,38.92156119]
[1641641845477,27.66479,145.46,145.43,38.92156119]
[1641641845880,27.66479,145.49,145.43,38.92156119]
[1641641846077,27.66479,145.51,145.43,48.48456119]
[1641641846480,27.66479,145.51,145.43,70.0357859]
[1641641846678,27.66479,145.51,145.43,66.0357859]
[1641641846878,27.66479,145.51,145.43,70.0357859]
[1641641847080,27.66479,145.51,145.43,66.0357859]
[1641641847482,27.66479,145.51,145.49,38.95151193]
[1641641848081,27.66479,145.51,145.49,33.09295485]
[1641641848483,27.66479,145.51,145.44,60.4727859]
[1641641848683,27.66479,145.51,145.5,2.1746347]
[1641641849584,27.66479,145.51,145.43,74.29328529]
[1641641851787,27.66479,145.51,145.5,14.60744564]
[1641641859897,27.66479,145.51,145.45,58.2981512]
[1641641860800,27.66479,145.51,145.45,60.4727859]
[1641641861502,27.66479,145.51,145.45,58.2981512]
[1641641864303,5.49999962,145.46,145.45,58.2981512]
[1641641864706,27.66479,145.47,145.45,58.2981512]
[1641641864910,27.66479,145.47,145.43,15.99513409]
[1641641865309,34.40179,145.47,145.43,15.99513409]
[1641641867913,5.50015604,145.46,145.43,15.99513409]
[1641641868112,1.718,145.45,145.43,15.99513409]
[1641641869015,1.718,145.45,145.43,38.95052529]
[1641641869215,5.50015604,145.46,145.43,32.03052529]
[1641641869414,7.21815604,145.46,145.43,32.03052529]
[1641641870119,7.21815604,145.46,145.45,14.60007495]
[1641641870314,9.50015604,145.46,145.45,14.60007495]
[1641641870516,9.50015604,145.46,145.45,10.04557495]
[1641641870715,9.50015604,145.46,145.42,2.1746347]
[1641641870914,5.718,145.45,145.42,13.82049939]
[1641641871114,1.718,145.45,145.42,13.82049939]
[1641641871715,1.718,145.45,145.41,27.66479]
[1641641871916,18.47315604,145.46,145.41,27.66479]
[1641641878130,5.50055419,145.44,145.41,27.66479]
[1641641880133,5.50055419,145.44,145.39,13.82049939]
[1641641880733,27.66479,145.43,145.39,13.82049939]
[1641641880933,34.01479,145.43,145.39,13.82049939]
[1641641882934,27.66479,145.43,145.39,13.82049939]
[1641641886637,4.0,145.4,145.35,58.2981512]
[1641641886938,27.66479,145.37,145.35,58.2981512]
[1641641887540,33.37879,145.37,145.35,58.2981512]
[1641641887739,33.37879,145.37,145.33,1.718]
[1641641888839,61.04358,145.37,145.33,1.718]
[1641641889039,4.0,145.35,145.28,65.219]
[1641641889239,4.0,145.33,145.27,58.2981512]
[1641641889439,12.661,145.33,145.27,49.2981512]
[1641641889640,5.50509362,145.32,145.27,49.2981512]
[1641641890239,5.50509362,145.32,145.25,66.2483]
[1641641890439,5.50509362,145.32,145.28,38.86140923]
[1641641890939,55.32958,145.29,145.28,38.86140923]
[1641641891241,61.90358,145.29,145.28,38.86140923]
[1641641891440,61.90358,145.29,145.26,38.86140923]
[1641641892239,61.90358,145.29,145.27,38.86140923]
[1641641893240,61.90358,145.29,145.24,65.782]
[1641641893241,61.90358,145.29,145.26,38.86140923]
[1641641893739,65.90358,145.29,145.26,38.86140923]
[1641641894239,61.90358,145.29,145.25,38.86140923]
[1641641894840,27.66479,145.26,145.25,38.86140923]
[1641641895040,35.33579,145.26,145.24,38.86140923]
[1641641895640,10.89974177,145.26,145.24,38.86140923]
[1641641896240,10.89974177,145.26,145.25,38.86140923]
[1641641897241,10.89974177,145.26,145.24,38.86140923]
[1641641898051,10.89974177,145.26,145.23,38.86140923]
[1641641899044,3.22874177,145.26,145.23,38.86140923]
[1641641900343,1.721,145.25,145.23,38.86140923]
[1641641900844,1.721,145.25,145.23,28.54140923]
[1641641901044,5.50723648,145.27,145.23,28.54140923]
[1641641901245,5.50723648,145.27,145.22,4.0]
[1641641901444,10.52,145.29,145.22,4.0]
[1641641902046,10.52,145.29,145.26,14.51623069]
[1641641902947,1.72,145.28,145.25,14.51623069]
[1641641903148,10.52,145.29,145.25,14.51623069]
[1641641903747,10.52,145.29,145.26,14.51623069]
[1641641904752,1.72,145.31,145.26,18.51623069]
[1641641904952,10.26,145.33,145.28,4.0]
[1641641905252,1.72,145.4,145.28,4.0]
[1641641905453,5.72,145.4,145.28,11.446]
[1641641905654,1.72,145.4,145.28,11.446]
[1641641905853,11.8,145.4,145.28,11.446]
[1641641906258,11.8,145.4,145.31,14.51623069]
[1641641906455,11.8,145.4,145.33,4.0]
[1641641906858,1.719,145.43,145.35,27.66479]
[1641641907158,1.719,145.44,145.35,33.35179]
[1641641907356,5.719,145.44,145.35,33.35179]
[1641641907957,1.719,145.44,145.35,33.35179]
[1641641908357,1.719,145.44,145.35,35.07079]
[1641641909462,1.719,145.44,145.36,14.51623069]
[1641641910260,1.719,145.44,145.38,14.51623069]
[1641641910460,33.16529854,145.45,145.38,21.96323069]
[1641641912963,1.719,145.46,145.38,21.96323069]
[1641641913163,103.6749283,145.47,145.38,49.62802069]
[1641641913362,38.8873283,145.47,145.38,49.62802069]
[1641641914465,4.0,145.46,145.38,49.62802069]
[1641641914664,38.8873283,145.47,145.38,49.62802069]
[1641641914864,5.50026902,145.45,145.38,49.62802069]
[1641641915066,7.21931979,145.45,145.38,49.62802069]
[1641641915566,5.50031979,145.45,145.38,49.62802069]
[1641641916669,5.50031979,145.45,145.4,14.51623069]
[1641641916869,29.38379,145.47,145.4,14.51623069]
[1641641917072,27.66479,145.47,145.4,14.51623069]
[1641641918672,16.77891797,145.48,145.4,14.51623069]
[1641641919272,16.77891797,145.48,145.41,14.51623069]
[1641641920174,20.77891797,145.48,145.41,14.51623069]
[1641641920576,1.718,145.47,145.41,14.51623069]
[1641641920774,18.49691797,145.48,145.41,14.51623069]
[1641641920976,18.49691797,145.48,145.4,14.51623069]
[1641641922576,16.77891797,145.48,145.4,14.51623069]
[1641641923177,16.77891797,145.48,145.41,27.66479]
[1641641923376,16.77891797,145.48,145.41,42.18102069]
[1641641924777,16.77891797,145.48,145.41,27.66479]
[1641641924978,16.77891797,145.48,145.41,36.35779]
[1641641926780,16.77891797,145.48,145.42,14.51623069]
[1641641927580,16.77891797,145.48,145.42,1.90031529]
[1641641928482,16.77891797,145.48,145.4,16.41654598]
[1641641929184,16.77891797,145.48,145.41,14.51623069]
[1641641930784,16.77891797,145.48,145.42,14.51623069]
[1641641932185,4.0,145.46,145.42,14.51623069]
[1641641932386,9.869,145.46,145.42,14.51623069]
[1641641932586,9.869,145.46,145.43,14.51623069]
[1641641933687,9.869,145.46,145.41,14.51623069]
[1641641935188,9.49983622,145.46,145.41,14.51623069]
[1641641935388,9.49983622,145.46,145.44,14.51623069]
[1641641936090,9.49983622,145.46,145.45,14.51623069]
[1641641939195,5.50070807,145.44,145.42,38.69053507]
[1641641939393,11.316,145.46,145.42,38.69053507]
[1641641940295,11.316,145.46,145.4,38.69053507]
[1641641940497,4.0,145.46,145.4,38.69053507]
[1641641940896,4.0,145.46,145.41,38.69053507]
[1641641941597,4.0,145.46,145.42,38.69053507]
[1641641943303,4.0,145.46,145.41,38.69053507]